bitfinex/quotes_BTCUSD_20250917
["timestamp","ask_amount","ask_price","bid_price","bid_amount"]
[1758098137397,0.0001,116850.0,116840.0,0.51768679]
[1758098138357,0.0001,116850.0,116840.0,0.17227425]
[1758098138559,0.0001,116850.0,116840.0,0.53480421]
[1758098138824,0.0001,116850.0,116840.0,0.51768679]
[1758098139224,0.0001,116850.0,116840.0,0.17227425]
[1758098139429,0.0001,116850.0,116840.0,0.61107224]
[1758098139665,0.0001,116850.0,116840.0,0.24954228]
[1758098139890,0.0001,116850.0,116840.0,0.33481195]
[1758098140102,0.0001,116850.0,116840.0,0.68022449]
[1758098141126,0.0001,116860.0,116850.0,0.1711596]
[1758098141357,0.0001,116860.0,116850.0,0.4640796]
[1758098142762,0.0001,116860.0,116850.0,0.4641796]
[1758098143433,0.0001,116860.0,116850.0,0.1712596]
[1758098143650,0.0001,116860.0,116850.0,0.4636596]
[1758098143873,0.34551254,116860.0,116850.0,0.4636596]
[1758098145411,0.34551254,116860.0,116850.0,0.4646596]
[1758098145627,0.34951254,116860.0,116850.0,0.4656596]
[1758098146288,0.0041,116860.0,116850.0,0.4656596]
[1758098146510,0.34951254,116860.0,116850.0,0.4656596]
[1758098147525,0.34951254,116860.0,116850.0,0.4647796]
[1758098147771,0.52065749,116860.0,116850.0,0.1732596]
[1758098148008,0.52065749,116860.0,116850.0,0.4647796]
[1758098148635,0.17524495,116860.0,116850.0,0.29362]
[1758098148898,0.52065749,116860.0,116850.0,0.0021]
[1758098149296,0.52065749,116860.0,116850.0,0.29338]
[1758098149641,0.17524495,116860.0,116850.0,0.29328]
[1758098149877,0.52065749,116860.0,116850.0,0.29328]
[1758098150734,0.17524495,116860.0,116850.0,0.29328]
[1758098150956,0.17524495,116860.0,116850.0,0.29324]
[1758098151149,0.52065749,116860.0,116850.0,0.29324]
[1758098151301,0.17524495,116860.0,116850.0,0.29324]
[1758098151552,0.52065749,116860.0,116850.0,0.293]
[1758098151729,0.52065749,116860.0,116850.0,0.29288]
[1758098152125,0.52065749,116860.0,116850.0,0.002]
[1758098152337,0.52065749,116860.0,116850.0,0.29268]
[1758098152855,0.17524495,116860.0,116850.0,0.29268]
[1758098153214,0.52065749,116860.0,116850.0,0.29268]
[1758098153784,0.60592716,116860.0,116850.0,0.002]
[1758098153991,0.60592716,116860.0,116850.0,0.29268]
[1758098154197,0.60592716,116860.0,116850.0,0.2924]
[1758098154598,0.60592716,116860.0,116850.0,0.002]
[1758098154825,0.60592716,116860.0,116850.0,0.29228]
[1758098155216,0.60592716,116860.0,116850.0,0.002]
[1758098155414,0.60592716,116860.0,116850.0,0.29228]
[1758098155994,0.60592716,116860.0,116850.0,0.002]
[1758098156214,0.9513397,116860.0,116850.0,0.002]
[1758098156633,0.9513397,116860.0,116850.0,0.29184]
[1758098157982,1.71925041,116860.0,116850.0,0.002]
[1758098158220,1.71909041,116860.0,116850.0,0.002]
[1758098159091,1.71909041,116860.0,116850.0,0.001]
[1758098159308,1.42945041,116860.0,116850.0,0.001]
[1758098159544,0.51117425,116840.0,116830.0,0.00046951]
[1758098159766,1.6068609,116840.0,116830.0,0.00046951]
[1758098159997,1.6069609,116840.0,116830.0,0.00046951]
[1758098160238,0.98059068,116840.0,116830.0,0.00046951]
[1758098160470,1.26999068,116840.0,116830.0,0.00046951]
[1758098161414,1.61540322,116840.0,116830.0,0.00046951]
[1758098161636,1.70067289,116840.0,116830.0,0.00046951]
[1758098161849,1.41127289,116840.0,116830.0,0.00046951]
[1758098162078,1.32600322,116840.0,116830.0,0.00046951]
[1758098162293,1.32700322,116840.0,116830.0,0.00046951]
[1758098162512,1.61604322,116840.0,116830.0,0.00046951]
[1758098162751,1.32700322,116840.0,116830.0,0.00046951]
[1758098163204,1.61592322,116840.0,116830.0,0.00046951]
[1758098163405,1.70119289,116840.0,116830.0,0.00046951]
[1758098163609,1.41227289,116840.0,116830.0,0.00046951]
[1758098164216,1.70103289,116840.0,116830.0,0.00046951]
[1758098164425,1.35558035,116840.0,116830.0,0.00046951]
[1758098164633,1.70099289,116840.0,116830.0,0.00046951]
[1758098164863,0.72144781,116840.0,116830.0,0.00046951]
[1758098165150,1.70099289,116840.0,116830.0,0.00046951]
[1758098165581,1.73251652,116840.0,116830.0,0.00046951]
[1758098166016,1.73243652,116840.0,116830.0,0.00046951]
[1758098166234,1.73643652,116840.0,116830.0,0.00046951]
[1758098166908,1.44791652,116840.0,116830.0,0.00046951]
[1758098167150,1.73643652,116840.0,116830.0,0.00046951]
[1758098168016,1.44791652,116840.0,116830.0,0.00046951]
[1758098168250,1.70451289,116840.0,116830.0,0.00046951]
[1758098169097,1.78671289,116840.0,116830.0,0.00046951]
[1758098170182,1.78643289,116840.0,116830.0,0.00046951]
[1758098170388,1.49847289,116840.0,116830.0,0.00046951]
[1758098170603,1.78643289,116840.0,116830.0,0.00046951]
[1758098171396,1.49847289,116840.0,116830.0,0.00046951]
[1758098171629,1.78623289,116840.0,116830.0,0.00046951]
[1758098172912,1.78619289,116840.0,116830.0,0.00046951]
[1758098173315,1.49847289,116840.0,116830.0,0.00046951]
[1758098173526,1.78595289,116840.0,116830.0,0.00046951]
[1758098177484,1.49847289,116840.0,116830.0,0.00046951]
[1758098177851,1.78547289,116840.0,116830.0,0.00046951]
[1758098178560,1.09464781,116840.0,116830.0,0.00046951]
[1758098178765,1.78547289,116840.0,116830.0,0.00046951]
[1758098178961,1.09464781,116840.0,116830.0,0.00046951]
[1758098179308,1.49847289,116840.0,116830.0,0.00046951]
[1758098179511,1.78547289,116840.0,116830.0,0.00046951]
[1758098179691,1.49847289,116840.0,116830.0,0.00046951]
[1758098180119,1.78515289,116840.0,116830.0,0.00046951]
[1758098180374,1.5143193,116840.0,116830.0,0.00046951]
[1758098180584,1.8009993,116840.0,116830.0,0.00046951]
[1758098180794,1.5143193,116840.0,116830.0,0.00046951]
[1758098181002,1.8009193,116840.0,116830.0,0.00046951]
[1758098181156,1.5143193,116840.0,116830.0,0.00046951]
[1758098181373,1.8008393,116840.0,116830.0,0.00046951]
[1758098182495,1.52026565,116840.0,116830.0,0.00046951]
[1758098183152,1.83814928,116840.0,116830.0,0.00046951]
[1758098183705,1.55190928,116840.0,116830.0,0.00046951]
[1758098183880,1.83806928,116840.0,116830.0,0.00046951]
[1758098185095,1.83802928,116840.0,116830.0,0.00046951]
[1758098185293,1.83786928,116840.0,116830.0,0.00046951]
[1758098185544,1.80622565,116840.0,116830.0,0.00046951]
[1758098185712,1.80614565,116840.0,116830.0,0.00046951]
[1758098186118,1.80615292,116840.0,116830.0,0.00046951]
[1758098186604,1.52027292,116840.0,116830.0,0.00046951]
[1758098186981,1.80603292,116840.0,116830.0,0.00046951]
[1758098187202,1.52027292,116840.0,116830.0,0.00046951]
[1758098187339,1.80599292,116840.0,116830.0,0.00046951]
[1758098187742,1.8060013,116840.0,116830.0,0.00046951]
[1758098188366,1.8058013,116840.0,116830.0,0.00046951]
[1758098189033,1.5202813,116840.0,116830.0,0.00046951]
[1758098189239,1.8056413,116840.0,116830.0,0.00046951]
[1758098189471,1.83728493,116840.0,116830.0,0.00046951]
[1758098189834,1.55192493,116840.0,116830.0,0.00046951]
[1758098190037,1.8056413,116840.0,116830.0,0.00046951]
[1758098190365,1.8054813,116840.0,116830.0,0.00046951]
[1758098190578,1.5202813,116840.0,116830.0,0.00046951]
[1758098190780,1.8054413,116840.0,116830.0,0.00046951]
[1758098190985,1.5202813,116840.0,116830.0,0.00046951]
[1758098191200,1.8053613,116840.0,116830.0,0.00046951]
[1758098191581,1.5202813,116840.0,116830.0,0.00046951]
[1758098191769,1.8053613,116840.0,116830.0,0.00046951]
[1758098191967,0.82945622,116840.0,116830.0,0.00046951]
[1758098192275,1.8053213,116840.0,116830.0,0.00046951]
[1758098192456,1.78947489,116840.0,116830.0,0.00046951]
[1758098192682,1.80539043,116840.0,116830.0,0.00046951]
[1758098192956,1.52035043,116840.0,116830.0,0.00046951]
[1758098193182,1.80539043,116840.0,116830.0,0.00046951]
[1758098193399,1.37454822,116840.0,116830.0,0.00046951]
[1758098193845,0.74425568,116840.0,116830.0,0.00046951]
[1758098194069,1.02133411,116840.0,116830.0,0.00046951]
[1758098194311,0.68133411,116840.0,116830.0,0.00046951]
[1758098194550,0.99894378,116840.0,116830.0,0.00046951]
[1758098194785,1.33632601,116840.0,116830.0,0.00046951]
[1758098195196,1.32784369,116840.0,116830.0,0.00046951]
[1758098195493,1.04300369,116840.0,116830.0,0.00046951]
[1758098195684,1.32784369,116840.0,116830.0,0.00046951]
[1758098196069,1.63507402,116840.0,116830.0,0.00046951]
[1758098197108,1.02061336,116840.0,116830.0,0.00046951]
[1758098197331,1.63507402,116840.0,116830.0,0.00046951]
[1758098197967,1.02061336,116840.0,116830.0,0.00046951]
[1758098198152,1.63507402,116840.0,116830.0,0.00046951]
[1758098198757,1.35023402,116840.0,116830.0,0.00046951]
[1758098199004,1.63479402,116840.0,116830.0,0.00046951]
[1758098199368,1.62883202,116840.0,116830.0,0.00046951]
[1758098202057,1.01401136,116840.0,116830.0,0.00046951]
[1758098202281,0.99809582,116840.0,116830.0,0.00046951]
[1758098202516,1.61255648,116840.0,116830.0,0.00046951]
[1758098203663,1.32835648,116840.0,116830.0,0.00046951]
[1758098203879,1.61239648,116840.0,116830.0,0.00046951]
[1758098206092,0.99793582,116840.0,116830.0,0.00046951]
[1758098206302,1.61239648,116840.0,116830.0,0.00046951]
[1758098206927,1.32835648,116840.0,116830.0,0.00046951]
[1758098207174,1.61191648,116840.0,116830.0,0.00046951]
[1758098208322,0.99745582,116840.0,116830.0,0.00046951]
[1758098208494,1.61191648,116840.0,116830.0,0.00046951]
[1758098210439,1.61151648,116840.0,116830.0,0.00046951]
[1758098211738,1.64316011,116840.0,116830.0,0.00046951]
[1758098212816,1.61151648,116840.0,116830.0,0.00046951]
[1758098217250,0.99705582,116840.0,116830.0,0.00046951]
[1758098217501,1.61151648,116840.0,116830.0,0.00046951]
[1758098220911,0.71389582,116840.0,116830.0,0.00046951]
[1758098221131,1.61067648,116840.0,116830.0,0.00046951]
[1758098221597,0.99621582,116840.0,116830.0,0.00046951]
[1758098221810,1.61067648,116840.0,116830.0,0.00046951]
[1758098223614,0.99621582,116840.0,116830.0,0.00046951]
[1758098223827,1.61067648,116840.0,116830.0,0.00046951]
[1758098224486,1.27305425,116840.0,116830.0,0.00046951]
[1758098224705,0.90877425,116840.0,116830.0,0.00046951]
[1758098224952,1.19093425,116840.0,116830.0,0.00046951]
[1758098225187,0.26154392,116840.0,116830.0,0.00046951]
[1758098225400,0.85089425,116840.0,116830.0,0.00046951]
[1758098225624,0.56877425,116840.0,116830.0,0.00046951]
[1758098225845,0.0051,116840.0,116830.0,0.17165841]
[1758098226514,0.48250458,116840.0,116830.0,0.00046951]
[1758098226952,0.48250458,116840.0,116830.0,0.1887773]
[1758098226953,0.0041,116840.0,116830.0,0.1887773]
[1758098227166,0.0041,116840.0,116830.0,0.17165841]
[1758098229406,0.0041,116840.0,116830.0,0.17265841]
[1758098229617,0.0041,116840.0,116830.0,0.17365841]
[1758098230056,0.0041,116840.0,116830.0,0.48088874]
[1758098230296,0.0041,116840.0,116830.0,0.64252644]
[1758098230517,0.0041,116840.0,116830.0,0.95625841]
[1758098230751,0.0041,116840.0,116830.0,1.11375682]
[1758098231420,0.0041,116840.0,116830.0,1.73269905]
[1758098231672,0.0041,116840.0,116830.0,0.83467839]
[1758098231892,0.0041,116840.0,116830.0,1.42442872]
[1758098232108,0.004,116840.0,116830.0,1.14690872]
[1758098232324,0.004,116840.0,116830.0,1.37734872]
[1758098232549,0.004,116840.0,116830.0,1.11575682]
[1758098232767,0.004,116840.0,116830.0,1.40015682]
[1758098233200,0.004,116840.0,116830.0,1.29257841]
[1758098233416,0.004,116840.0,116830.0,0.9879496]
[1758098233630,0.004,116840.0,116830.0,1.2692296]
[1758098233846,0.004,116840.0,116830.0,0.68071927]
[1758098234073,0.004,116840.0,116830.0,0.62191927]
[1758098234326,0.004,116840.0,116830.0,0.9291496]
[1758098234997,0.004,116840.0,116830.0,0.85245841]
[1758098237529,0.004,116840.0,116830.0,0.54522808]
[1758098237755,0.004,116840.0,116830.0,0.85245841]
[1758098238461,0.004,116840.0,116830.0,0.57125841]
[1758098238680,0.004,116840.0,116830.0,0.85225841]
[1758098242958,0.004,116840.0,116830.0,0.54458808]
[1758098243183,0.004,116840.0,116830.0,0.85181841]
[1758098243630,0.004,116840.0,116830.0,0.57125841]
[1758098244069,0.004,116840.0,116830.0,0.85193841]
[1758098244292,0.004,116840.0,116830.0,0.54470808]
[1758098244505,0.004,116840.0,116830.0,0.85193841]
[1758098244900,0.004,116840.0,116830.0,0.84893841]
[1758098245121,0.004,116840.0,116830.0,0.53774808]
[1758098245456,0.004,116840.0,116830.0,0.28324951]
[1758098245729,0.17517425,116840.0,116830.0,0.28416951]
[1758098245977,0.48240458,116840.0,116830.0,0.28416951]
[1758098246185,0.17517425,116840.0,116830.0,0.28616951]
[1758098246408,0.004,116840.0,116830.0,0.28316951]
[1758098246622,0.004,116840.0,116830.0,0.28116951]
[1758098246855,0.004,116840.0,116830.0,0.28316951]
[1758098250464,0.0041,116840.0,116830.0,0.28316951]
[1758098250684,0.0041,116840.0,116830.0,0.45435841]
[1758098251994,0.0041,116840.0,116830.0,0.76158874]
[1758098253277,0.0041,116840.0,116830.0,0.45435841]
[1758098253595,0.0041,116840.0,116830.0,0.28316951]
[1758098254094,0.0041,116840.0,116830.0,0.45435841]
[1758098255894,0.0041,116840.0,116830.0,0.79977716]
[1758098259368,0.0041,116840.0,116830.0,0.88504683]
[1758098259586,0.0041,116840.0,116830.0,0.53962808]
[1758098259790,0.004,116840.0,116830.0,0.96173802]
[1758098261706,0.004,116840.0,116830.0,0.96073802]
[1758098261903,0.004,116840.0,116830.0,0.95973802]
[1758098262123,0.004,116840.0,116830.0,0.96073802]
[1758098262335,0.004,116840.0,116830.0,0.68213802]
[1758098262574,0.004,116840.0,116830.0,1.77710867]
[1758098262799,0.004,116840.0,116830.0,1.80791589]
[1758098263014,0.004,116840.0,116830.0,1.80691589]
[1758098263221,0.004,116840.0,116830.0,1.80679589]
[1758098263860,0.004,116840.0,116830.0,1.80479589]
[1758098264073,0.004,116840.0,116830.0,1.80679589]
[1758098264280,0.004,116840.0,116830.0,1.80779589]
[1758098264721,0.004,116840.0,116830.0,1.80679589]
[1758098265133,0.004,116840.0,116830.0,1.11795839]
[1758098265367,2.0,116850.0,116840.0,0.56117425]
[1758098265584,2.0,116850.0,116840.0,1.41411613]
[1758098266009,2.0,116850.0,116840.0,1.69303613]
[1758098266454,2.0,116850.0,116840.0,1.69313613]
[1758098267106,2.0,116850.0,116840.0,1.69305613]
[1758098267531,2.0,116850.0,116840.0,1.75648211]
[1758098267955,2.0,116850.0,116840.0,1.75748211]
[1758098269750,2.0,116850.0,116840.0,1.83763401]
[1758098270832,2.0,116850.0,116840.0,1.7616793]
[1758098271059,2.0,116850.0,116840.0,1.4819593]
[1758098271272,2.0,116850.0,116840.0,1.16232107]
[1758098271485,2.0,116850.0,116840.0,1.06647042]
[1758098271696,2.0,116850.0,116840.0,1.13516917]
[1758098271895,2.0,116850.0,116840.0,0.78975042]
[1758098272110,2.0,116850.0,116840.0,1.41488917]
[1758098272322,2.0,116850.0,116840.0,1.41788917]
[1758098273337,2.0,116850.0,116840.0,1.76330792]
[1758098274102,2.0,116850.0,116840.0,1.41788917]
[1758098275167,2.0,116850.0,116840.0,1.76330792]
[1758098275354,2.0,116850.0,116840.0,2.09210792]
[1758098275748,2.0,116850.0,116840.0,1.74668917]
[1758098275945,2.0,116850.0,116840.0,2.17225982]
[1758098276345,2.0,116850.0,116840.0,1.89249982]
[1758098277122,2.0,116850.0,116840.0,2.17197982]
[1758098277527,2.0,116850.0,116840.0,1.20166232]
[1758098277760,2.0,116850.0,116840.0,2.17197982]
[1758098279475,2.0,116850.0,116840.0,2.0951993]
[1758098280510,2.0,116850.0,116840.0,1.4043618]
[1758098280718,2.0,116850.0,116840.0,1.8157193]
[1758098280892,2.0,116850.0,116840.0,1.82609239]
[1758098281099,2.0,116850.0,116840.0,1.74934055]
[1758098281313,2.0,116850.0,116840.0,1.0447299]
[1758098281518,2.0,116850.0,116840.0,1.01057038]
[1758098281717,2.0,116850.0,116840.0,1.27922865]
[1758098282340,2.0,116850.0,116840.0,1.27622865]
[1758098282541,2.0,116850.0,116840.0,0.9308099]
[1758098282740,2.0,116850.0,116840.0,1.27622865]
[1758098283322,2.0,116850.0,116840.0,1.27322865]
[1758098283506,2.0,116850.0,116840.0,1.27522865]
[1758098283706,2.0,116850.0,116840.0,1.27322865]
[1758098284174,2.0,116850.0,116840.0,1.27722865]
[1758098284585,2.0,116850.0,116840.0,1.27522865]
[1758098284926,2.0,116850.0,116840.0,1.27722865]
[1758098285140,2.0,116850.0,116840.0,1.35398913]
[1758098285768,2.0,116850.0,116840.0,1.26871946]
[1758098286604,2.0,116850.0,116840.0,1.35087946]
[1758098287348,2.0,116850.0,116840.0,1.07179946]
[1758098287574,2.0,116850.0,116840.0,0.83384646]
[1758098287575,2.1711596,116850.0,116840.0,0.83384646]
[1758098287797,2.1711596,116850.0,116840.0,0.16302048]
[1758098288037,2.1711596,116850.0,116840.0,0.3649]
[1758098288697,2.51657835,116850.0,116840.0,0.08626]
[1758098288915,2.1711596,116850.0,116840.0,0.08626]
[1758098289142,2.51657835,116850.0,116840.0,0.36486]
[1758098290460,2.51667835,116850.0,116840.0,0.36486]
[1758098291959,2.1712596,116850.0,116840.0,0.36486]
[1758098292529,2.51667835,116850.0,116840.0,0.36486]
[1758098292946,2.1712596,116850.0,116840.0,0.36486]
[1758098295044,2.1712596,116850.0,116840.0,0.71027875]
[1758098295402,2.1712596,116850.0,116840.0,0.36486]
[1758098295628,2.1712596,116850.0,116840.0,0.2827]
[1758098296457,2.0001,116850.0,116840.0,0.62811875]
[1758098297156,2.0001,116850.0,116840.0,0.2827]
[1758098297366,2.0001,116850.0,116840.0,0.62811875]
[1758098297773,2.1712596,116850.0,116840.0,0.62811875]
[1758098299570,2.1712596,116850.0,116840.0,0.2827]
[1758098299787,2.1712596,116850.0,116840.0,0.62811875]
[1758098300878,2.1712596,116850.0,116840.0,0.2827]
[1758098301048,2.1712596,116850.0,116840.0,0.62811875]
[1758098301980,2.1712596,116850.0,116840.0,0.0041]
[1758098302191,2.1712596,116850.0,116840.0,0.2859]
[1758098302399,2.51667835,116850.0,116840.0,0.2859]
[1758098304118,2.1712596,116850.0,116840.0,0.2859]
[1758098304339,2.51667835,116850.0,116840.0,0.2859]
[1758098304598,2.1712596,116850.0,116840.0,0.2859]
[1758098307405,2.1712596,116850.0,116840.0,0.63131875]
[1758098310363,2.0001,116850.0,116840.0,1.01959707]
[1758098310537,2.0001,116850.0,116840.0,2.37507957]
[1758098310538,1.92869721,116850.0,116840.0,2.37507957]
[1758098310767,1.76238237,116850.0,116840.0,1.92637909]
[1758098311127,1.76238237,116850.0,116840.0,1.98096034]
[1758098311294,1.76238237,116850.0,116840.0,2.36967661]
[1758098311629,1.76238237,116850.0,116840.0,2.01634088]
[1758098311830,1.76238237,116850.0,116840.0,2.27474826]
[1758098312041,1.76238237,116850.0,116840.0,2.29584496]
[1758098312204,1.76238237,116850.0,116840.0,2.29384496]
[1758098312414,1.76238237,116850.0,116840.0,2.29784496]
[1758098312619,1.76238237,116850.0,116840.0,2.30084496]
[1758098313097,1.76238237,116850.0,116840.0,2.01984496]
[1758098313321,1.76238237,116850.0,116840.0,2.30072496]
[1758098313723,1.76238237,116850.0,116840.0,2.19312869]
[1758098315114,0.0001,116890.0,116880.0,0.17111567]
[1758098315354,0.0001,116890.0,116880.0,1.58740348]
[1758098315593,0.0001,116890.0,116880.0,0.87403567]
[1758098316030,0.0001,116890.0,116880.0,1.48729423]
[1758098316269,0.0001,116890.0,116880.0,0.87403567]
[1758098316486,0.00023961,116890.0,116880.0,0.95930534]
[1758098316927,0.00123961,116890.0,116880.0,1.5725639]
[1758098317142,0.00113961,116890.0,116880.0,1.26593462]
[1758098317366,0.00013961,116890.0,116880.0,0.95930534]
[1758098317583,0.00113961,116890.0,116880.0,1.5725639]
[1758098318730,0.00113961,116890.0,116880.0,1.58122568]
[1758098319912,0.00113961,116890.0,116880.0,1.61137758]
[1758098320130,0.00113961,116890.0,116880.0,1.71137758]
[1758098320350,0.00113961,116890.0,116880.0,1.77670807]
[1758098320563,0.0001,116910.0,116900.0,0.81771567]
[1758098320800,0.0001,116910.0,116900.0,1.24474534]
[1758098321454,0.0001,116910.0,116900.0,1.19474534]
[1758098321660,0.0001,116910.0,116900.0,1.24474534]
[1758098322117,0.0001,116910.0,116900.0,1.24484534]
[1758098322571,0.0001,116920.0,116910.0,0.17107176]
[1758098322782,0.0001,116920.0,116910.0,0.93669071]
[1758098323424,0.0001,116920.0,116910.0,0.64513071]
[1758098323625,0.0001,116920.0,116910.0,0.62994143]
[1758098323838,0.0001,116920.0,116910.0,0.93657071]
[1758098324264,0.0001,116930.0,116920.0,0.17105713]
[1758098324471,0.00024054,116930.0,116920.0,0.47768641]
[1758098324686,0.00024054,116930.0,116920.0,0.17105713]
[1758098325128,0.00024054,116930.0,116920.0,0.83299943]
[1758098325540,0.00124054,116930.0,116920.0,0.83309943]
[1758098327000,0.00124054,116930.0,116920.0,0.54089943]
[1758098327215,0.00124054,116930.0,116920.0,0.83297943]
[1758098327463,0.00124054,116930.0,116920.0,0.54089943]
[1758098327684,0.00124054,116930.0,116920.0,0.83297943]
[1758098328941,0.00124054,116930.0,116920.0,0.83289943]
[1758098329364,0.00124054,116930.0,116920.0,0.83257943]
[1758098329613,0.00124054,116930.0,116920.0,0.52587015]
[1758098329825,0.00124054,116930.0,116920.0,0.83249943]
[1758098330824,0.00124054,116930.0,116920.0,0.06321302]
[1758098331055,0.17228304,116930.0,116920.0,0.06321302]
[1758098331260,0.56418199,116930.0,116920.0,0.0001]
[1758098331623,0.56418199,116930.0,116920.0,0.29138]
[1758098332653,0.25755271,116930.0,116920.0,0.29138]
[1758098333209,0.25755271,116930.0,116920.0,0.29128]
[1758098333628,0.17105713,116920.0,116910.0,0.06534312]
[1758098333829,0.56295608,116920.0,116910.0,0.29094]
[1758098334034,0.2563268,116920.0,116910.0,0.29094]
[1758098334244,0.56295608,116920.0,116910.0,0.29094]
[1758098334645,0.56305608,116920.0,116910.0,0.29094]
[1758098334853,0.56405608,116920.0,116910.0,0.29094]
[1758098335056,0.2574268,116920.0,116910.0,0.29094]
[1758098335814,0.56405608,116920.0,116910.0,0.29094]
[1758098337822,0.0011,116920.0,116910.0,0.67972928]
[1758098338026,0.0011,116920.0,116910.0,0.3731]
[1758098338437,0.17215713,116920.0,116910.0,0.3731]
[1758098339373,0.19169279,116920.0,116910.0,0.3731]
[1758098339804,0.02063566,116920.0,116910.0,0.54417176]
[1758098340189,0.0011,116920.0,116910.0,0.54417176]
[1758098341955,0.17215713,116920.0,116910.0,0.3731]
[1758098342186,0.19169279,116920.0,116910.0,0.3731]
[1758098343815,0.0011,116920.0,116910.0,0.54417176]
[1758098344439,0.19169279,116920.0,116910.0,0.08226]
[1758098344652,0.58955365,116920.0,116910.0,0.0001]
[1758098344890,0.57001799,116920.0,116910.0,0.28922]
[1758098345318,0.91001799,116920.0,116910.0,0.28922]
[1758098345528,0.91001799,116920.0,116910.0,0.0001]
[1758098345735,0.92592071,116920.0,116910.0,0.28914]
[1758098346186,0.91001799,116920.0,116910.0,0.28914]
[1758098346405,0.92591879,116920.0,116910.0,0.28914]
[1758098346853,0.92591879,116920.0,116890.0,0.31830858]
[1758098346854,0.17108639,116900.0,116890.0,0.08216]
[1758098347090,0.19062205,116900.0,116890.0,0.08216]
[1758098347323,0.19062205,116900.0,116890.0,0.37084]
[1758098347976,0.19072205,116900.0,116890.0,0.37184]
[1758098348201,0.19072205,116900.0,116890.0,0.08416]
[1758098348427,0.19072205,116900.0,116890.0,0.37292]
[1758098349404,0.0001,116900.0,116890.0,0.37292]
[1758098349639,0.0001,116900.0,116890.0,0.67954928]
[1758098349857,0.0001,116900.0,116890.0,0.85065031]
[1758098350078,0.17022419,116910.0,116890.0,0.85065031]
[1758098350970,0.17022419,116910.0,116890.0,0.84965031]
[1758098351235,0.17108639,116900.0,116890.0,0.84965031]
[1758098351461,0.17022419,116910.0,116890.0,0.84865031]
[1758098351894,0.17022419,116910.0,116890.0,0.54202103]
[1758098352124,0.17108639,116900.0,116890.0,0.37092]
[1758098352572,0.17118639,116900.0,116890.0,0.37092]
[1758098352803,0.17118639,116900.0,116890.0,0.54202103]
[1758098353580,0.17118639,116900.0,116890.0,0.54312103]
[1758098353987,0.17118639,116900.0,116890.0,0.54412103]
[1758098354780,0.0001,116900.0,116890.0,0.54412103]
[1758098355301,0.17118639,116900.0,116890.0,0.37302]
[1758098356174,0.17118639,116900.0,116890.0,0.37162]
[1758098356437,0.17118639,116900.0,116890.0,0.37154]
[1758098356879,0.17118639,116900.0,116890.0,0.54264103]
[1758098357121,0.17118639,116900.0,116890.0,0.08426]
[1758098357330,0.17118639,116900.0,116890.0,0.37154]
[1758098358038,0.17118639,116900.0,116890.0,0.08426]
[1758098358257,0.17118639,116900.0,116890.0,0.3715]
[1758098358411,0.17118639,116900.0,116890.0,0.08426]
[1758098358865,0.17118639,116900.0,116890.0,0.37122]
[1758098359047,0.17118639,116900.0,116890.0,0.08426]
[1758098359386,0.17118639,116900.0,116890.0,0.37118]
[1758098359598,0.0001,116900.0,116890.0,0.54228103]
[1758098360024,0.17118639,116900.0,116890.0,0.95648476]
[1758098360997,0.17118639,116900.0,116890.0,0.54228103]
[1758098361237,0.17118639,116900.0,116890.0,0.08426]
[1758098361443,0.17118639,116900.0,116890.0,0.37086]
[1758098362489,0.17118639,116900.0,116890.0,0.08426]
[1758098362707,0.0001,116900.0,116890.0,0.54196103]
[1758098363079,0.17118639,116900.0,116890.0,0.54196103]
[1758098363942,0.17118639,116900.0,116890.0,0.37086]
[1758098364122,0.17118639,116900.0,116890.0,0.37062]
[1758098364332,0.17118639,116900.0,116890.0,0.08426]
[1758098364811,0.17118639,116900.0,116890.0,0.3703]
[1758098366136,0.17118639,116900.0,116890.0,0.08426]
[1758098366350,0.17118639,116900.0,116890.0,0.37026]
[1758098367215,0.17118639,116900.0,116890.0,0.78446373]
[1758098368959,0.17118639,116900.0,116890.0,0.49846373]
[1758098369182,0.17118639,116900.0,116890.0,0.37042]
[1758098369402,0.17118639,116900.0,116890.0,0.3703]
[1758098370241,0.19072205,116900.0,116890.0,0.37026]
[1758098370658,0.19072205,116900.0,116890.0,0.08426]
[1758098370876,0.19072205,116900.0,116890.0,0.37014]
[1758098371079,0.19072205,116900.0,116890.0,0.36998]
[1758098372524,0.19072205,116900.0,116890.0,0.08426]
[1758098372742,0.19072205,116900.0,116890.0,0.36998]
[1758098373949,0.27599172,116900.0,116890.0,0.36998]
[1758098374184,0.56324731,116900.0,116890.0,0.36974]
[1758098374409,0.56324731,116900.0,116890.0,0.0021]
[1758098374638,0.90324731,116900.0,116890.0,0.28738]
[1758098374853,0.90324731,116900.0,116890.0,0.28728]
[1758098375284,0.90324731,116900.0,116890.0,0.28628]
[1758098375712,0.90324731,116900.0,116890.0,0.28528]
[1758098375924,0.17110103,116890.0,116880.0,0.0001]
[1758098376144,0.27590636,116890.0,116880.0,0.63035118]
[1758098376381,0.2563707,116890.0,116880.0,0.34531118]
[1758098376599,0.2563707,116890.0,116880.0,0.0001]
[1758098376830,0.2563707,116890.0,116880.0,0.63031118]
[1758098377061,0.2564707,116890.0,116880.0,0.63031118]
[1758098377756,0.2574707,116890.0,116880.0,0.63031118]
[1758098379769,0.2574707,116890.0,116880.0,0.2851]
[1758098380215,0.94268188,116890.0,116880.0,0.0001]
[1758098380436,0.94268188,116890.0,116880.0,0.28466]
[1758098381118,0.94268188,116890.0,116880.0,0.28456]
[1758098381336,0.5974707,116890.0,116880.0,0.28456]
[1758098381547,0.94268188,116890.0,116880.0,0.28456]
[1758098382231,0.5974707,116890.0,116880.0,0.28456]
[1758098382450,0.94268188,116890.0,116880.0,0.28456]
[1758098383083,0.5974707,116890.0,116880.0,0.28456]
[1758098383730,0.94268188,116890.0,116880.0,0.28456]
[1758098384628,0.5974707,116890.0,116880.0,0.28456]
[1758098384836,0.94268188,116890.0,116880.0,0.28456]
[1758098385257,0.17111567,116880.0,116870.0,0.42747118]
[1758098385465,0.19065133,116880.0,116870.0,0.71153079]
[1758098386731,0.19075133,116880.0,116870.0,0.71153079]
[1758098388060,0.17121567,116880.0,116870.0,0.71153079]
[1758098392641,0.17121567,116880.0,116870.0,1.22787228]
[1758098392642,0.0001,116880.0,116870.0,1.22787228]
[1758098393539,0.0001,116880.0,116870.0,0.25352992]
[1758098393760,0.0001,116880.0,116870.0,0.8823011]
[1758098393978,0.0001,116880.0,116870.0,0.8821411]
[1758098394414,0.0001,116880.0,116870.0,0.95887272]
[1758098395757,0.0001,116880.0,116870.0,0.95879272]